fUST/lending_fUST_20240226
["ID","MTS","AMOUNT","RATE_DAILY","PERIOD"]
[315215642,1708944638890,-500.0,0.00019178,2]
[315215643,1708944638899,-500.0,0.00019178,2]
[315215644,1708944638908,-500.0,0.00019178,2]
[315215645,1708944638917,-10054.21,0.00019178,2]
[315215646,1708944638926,-500.0,0.00019178,2]
[315215647,1708944638935,-508.95,0.00019178,2]
[315215648,1708944638944,-500.0,0.00019178,2]
[315215649,1708944638953,-500.0,0.00019178,2]
[315215650,1708944638963,-500.0,0.00019178,2]
[315215651,1708944638972,-601.5,0.00019178,2]
[315215652,1708944638981,-7303.99,0.00019178,2]
[315215653,1708944638990,-500.0,0.00019178,2]
[315215654,1708944638999,-500.0,0.00019178,2]
[315215655,1708944639008,-3878.83,0.00019178,2]
[315215656,1708944639017,-849.72,0.00019178,2]
[315215657,1708944639026,-500.0,0.00019178,2]
[315215658,1708944639036,-611.90746335,0.00019178,2]
[315215659,1708944639045,-503.09950777,0.00019178,2]
[315215660,1708944639054,-1173.14,0.00019178,2]
[315215661,1708944639064,-500.0,0.00019178,2]
[315215662,1708944639073,-500.0,0.00019178,2]
[315215663,1708944639082,-500.0,0.00019178,2]
[315215664,1708944639091,-500.0,0.00019178,2]
[315215665,1708944639100,-500.0,0.00019178,2]
[315215666,1708944639109,-500.0,0.00019178,2]
[315215667,1708944639118,-500.0,0.00019178,2]
[315215668,1708944639127,-742.66,0.00019178,2]
[315215669,1708944639136,-500.0,0.00019178,2]
[315215670,1708944639146,-500.0,0.00019178,2]
[315215671,1708944639160,-500.0,0.00019178,2]
[315215672,1708944639170,-500.0,0.00019178,2]
[315215673,1708944639179,-2443.93,0.00019178,2]
[315215674,1708944639188,-500.0,0.00019178,2]
[315215675,1708944639198,-20509.35,0.00019178,2]
[315215676,1708944639207,-3618.85,0.00019178,2]
[315215677,1708944639216,-500.0,0.00019178,2]
[315215678,1708944639226,-179.84917799,0.00019178,2]
[315215679,1708944639235,-2029.52,0.00019178,2]
[315215680,1708944639244,-1534.84,0.00019178,2]
[315215681,1708944639254,-500.0,0.00019178,2]
[315215682,1708944639374,-212.2436076,0.00019178,2]
[315215683,1708944639384,-2500.81,0.00019178,2]
[315215684,1708944639394,-2377.98,0.00019178,2]
[315215685,1708944639402,-500.0,0.00019178,2]
[315215686,1708944639411,-500.76681216,0.00019178,2]
[315215687,1708944639420,-500.3462092,0.00019178,2]
[315215688,1708944639429,-502.22509866,0.00019178,2]
[315215689,1708944639439,-500.0,0.00019178,2]
[315215690,1708944639448,-500.0,0.00019178,2]
[315215691,1708944639457,-500.0,0.00019178,2]
[315215692,1708944639466,-1000.0,0.00019178,2]
[315215693,1708944639475,-500.0,0.00019178,2]
[315215694,1708944639484,-234.57397735,0.00019178,2]
[315215695,1708944639493,-500.0,0.00019178,2]
[315215696,1708944639502,-500.0,0.00019178,2]
[315215697,1708944639511,-500.0,0.00019178,2]
[315215698,1708944639520,-500.0,0.00019178,2]
[315215699,1708944639530,-1257.84,0.00019178,2]
[315215700,1708944639539,-500.0,0.00019178,2]
[315215701,1708944639548,-500.0,0.00019178,2]
[315215702,1708944639557,-501.16145419,0.00019178,2]
[315215703,1708944639566,-500.0,0.00019178,2]
[315215704,1708944639575,-500.0,0.00019178,2]
[315215705,1708944639586,-500.0,0.00019178,2]
[315215706,1708944639595,-2043.46,0.00019178,2]
[315215707,1708944639604,-500.0,0.00019178,2]
[315215708,1708944639615,-500.0,0.00019178,2]
[315215709,1708944639624,-1897.11,0.00019178,2]
[315215710,1708944639632,-500.0,0.00019178,2]
[315215711,1708944639641,-500.0,0.00019178,2]
[315215712,1708944639650,-500.0,0.00019178,2]
[315215713,1708944639659,-500.58116796,0.00019178,2]
[315215714,1708944639668,-500.0,0.00019178,2]
[315215715,1708944639678,-640.38620748,0.00019178,2]
[315215716,1708944639687,-500.0,0.00019178,2]
[315215717,1708944639696,-500.0,0.00019178,2]
[315215718,1708944639705,-500.0,0.00019178,2]
[315215719,1708944639714,-500.0,0.00019178,2]
[315215720,1708944639723,-501.16229543,0.00019178,2]
[315215721,1708944639732,-359.8403748,0.00019178,2]
[315215722,1708944639740,-500.20438763,0.00019178,2]
[315215723,1708944639750,-175.10182328,0.00019178,2]
[315215724,1708944639759,-501.0884164,0.00019178,2]
[315215725,1708944639768,-500.0,0.00019178,2]
[315215726,1708944639778,-500.0,0.00019178,2]
[315215727,1708944639787,-500.0,0.00019178,2]
[315215728,1708944639796,-266.51557641,0.00019178,2]
[315215729,1708944639807,-500.0,0.00019178,2]
[315215730,1708944639816,-500.0,0.00019178,2]
[315215731,1708944639825,-800.06,0.00019178,2]
[315215732,1708944639834,-166.117688,0.00019178,2]
[315215733,1708944639843,-166.666666,0.00019178,2]
[315215734,1708944639854,-165.532385,0.00019178,2]
[315215735,1708944639864,-500.0,0.00019451,2]
[315215736,1708944639873,-500.0,0.00019451,2]
[315215737,1708944639883,-500.0,0.00019451,2]
[315215738,1708944639892,-500.0,0.00019451,2]
[315215739,1708944639901,-500.0,0.00019452,2]
[315215740,1708944639910,-500.0,0.00019452,2]
[315215741,1708944639919,-676.95,0.00019452,2]
[315215742,1708944639929,-1240.76,0.00019452,2]
[315215743,1708944639938,-500.0,0.00019452,2]
[315215744,1708944639947,-500.0,0.00019452,2]
[315215745,1708944639956,-475.47317219,0.00019452,2]
[315215746,1708944639965,-500.0,0.00019452,2]
[315215747,1708944639975,-500.0,0.00019452,2]
[315215748,1708944639984,-500.0,0.00019452,2]
[315215749,1708944639993,-500.0,0.00019452,2]
[315215750,1708944640002,-500.0,0.00019452,2]
[315215751,1708944640011,-502.37578705,0.00019452,2]
[315215752,1708944640020,-500.0,0.00019452,2]
[315215753,1708944640033,-500.0,0.00019452,2]
[315215754,1708944640043,-500.0,0.00019452,2]
[315215755,1708944640052,-530.43,0.00019452,2]
[315215756,1708944640062,-500.0,0.00019452,2]
[315215757,1708944640071,-360.90910848,0.00019452,2]
[315215758,1708944640081,-238.35007482,0.00019452,2]
[315215759,1708944640091,-174.1893576,0.00019452,2]
[315215760,1708944640100,-581.89,0.00019452,2]
[315215761,1708944640110,-500.0,0.00019452,2]
[315215762,1708944640119,-501.16867912,0.00019452,2]
[315215763,1708944640129,-3113.07,0.00019452,2]
[315215764,1708944640139,-1303.73,0.00019452,2]
[315215765,1708944640149,-685.61,0.00019452,2]
[315215766,1708944640159,-500.0,0.00019452,2]
[315215767,1708944640169,-1398.47,0.00019452,2]
[315215768,1708944640180,-500.0,0.00019452,2]
[315215769,1708944640191,-500.0,0.00019452,2]
[315215770,1708944640201,-500.0,0.00019452,2]
[315215771,1708944640212,-500.0,0.00019452,2]
[315215772,1708944640222,-349.00690786,0.00019452,2]
[315215773,1708944640232,-1136.62,0.00019452,2]
[315215774,1708944640243,-259.9324532,0.00019452,2]
[315215775,1708944640252,-500.0,0.00019452,2]
[315215776,1708944640261,-506.01947048,0.00019452,2]
[315215777,1708944640271,-500.0,0.00019452,2]
[315215778,1708944640285,-185.27418586,0.00019452,2]
[315215779,1708944640294,-500.0,0.00019452,2]
[315215780,1708944640305,-500.0,0.00019452,2]
[315215782,1708944640314,-500.0,0.00019452,2]
[315215783,1708944640324,-500.0,0.00019452,2]
[315215784,1708944640334,-500.0,0.00019452,2]
[315215785,1708944640343,-1645.15,0.00019452,2]
[315215786,1708944640352,-500.0,0.00019452,2]
[315215787,1708944640361,-500.0,0.00019452,2]
[315215788,1708944640371,-613.2,0.00019452,2]
[315215789,1708944640380,-1531.16,0.00019452,2]
[315215790,1708944640389,-500.0,0.00019452,2]
[315215791,1708944640398,-1336.18,0.00019452,2]
[315215792,1708944640408,-500.0,0.00019452,2]
[315215793,1708944640417,-500.0,0.00019452,2]
[315215794,1708944640426,-500.0,0.00019452,2]
[315215795,1708944640436,-2438.08,0.00019452,2]
[315215796,1708944640446,-500.0,0.00019452,2]
[315215797,1708944640454,-500.0,0.00019452,2]
[315215798,1708944640464,-500.0,0.00019452,2]
[315215799,1708944640473,-500.0,0.00019452,2]
[315215800,1708944640482,-399.1209651,0.00019452,2]
[315215801,1708944640491,-500.0,0.00019452,2]
[315215802,1708944640501,-500.0,0.00019452,2]
[315215803,1708944640510,-500.0,0.00019452,2]
[315215804,1708944640518,-501.29706972,0.00019452,2]
[315215805,1708944640530,-500.0,0.00019452,2]
[315215806,1708944640539,-500.0,0.00019452,2]
[315215807,1708944640548,-1138.08,0.00019452,2]
[315215808,1708944640557,-500.0,0.00019452,2]
[315215809,1708944640566,-835.0,0.00019452,2]
[315215810,1708944640575,-438.04326599,0.00019452,2]
[315215811,1708944640584,-500.0,0.00019452,2]
[315215812,1708944640594,-20201.32,0.00019452,2]
[315215813,1708944640603,-500.0,0.00019452,2]
[315215814,1708944640613,-436.52101816,0.00019452,2]
[315215815,1708944640622,-551.4523923,0.00019452,2]
[315215816,1708944640631,-500.0,0.00019452,2]
[315215817,1708944640640,-500.0,0.00019452,2]
[315215818,1708944640649,-500.0,0.00019452,2]
[315215819,1708944640658,-500.0,0.00019452,2]
[315215820,1708944640666,-500.0,0.00019452,2]
[315215821,1708944640676,-500.0,0.00019452,2]
[315215822,1708944640685,-500.0,0.00019452,2]
[315215823,1708944640694,-500.0,0.00019452,2]
[315215824,1708944640703,-500.0,0.00019452,2]
[315215825,1708944640712,-1608.12,0.00019452,2]
[315215826,1708944640721,-500.0,0.00019452,2]
[315215827,1708944640730,-507.00886275,0.00019452,2]
[315215828,1708944640739,-10054.21,0.00019452,2]
[315215829,1708944640748,-508.95,0.00019452,2]
[315215830,1708944640757,-499.53437694,0.00019452,2]
[315215831,1708944640766,-500.0,0.00019452,2]
[315215832,1708944640778,-601.5,0.00019452,2]
[315215833,1708944640787,-7303.99,0.00019452,2]
[315215834,1708944640796,-500.0,0.00019452,2]
[315215835,1708944640807,-3878.83,0.00019452,2]
[315215836,1708944640817,-849.72,0.00019452,2]
[315215837,1708944640826,-500.0,0.00019452,2]
[315215838,1708944640835,-1173.14,0.00019452,2]
[315215839,1708944640845,-500.0,0.00019452,2]
[315215840,1708944640854,-500.0,0.00019452,2]
[315215841,1708944640862,-500.0,0.00019452,2]
[315215842,1708944640872,-487.01483259,0.00019452,2]
[315215843,1708944640881,-500.0,0.00019452,2]
[315215844,1708944640891,-500.0,0.00019452,2]
[315215845,1708944640902,-742.66,0.00019452,2]
[315215846,1708944640911,-500.0,0.00019452,2]
[315215847,1708944640920,-500.0,0.00019452,2]
[315215848,1708944640930,-203.42282125,0.00019452,2]
[315215849,1708944640939,-500.0,0.00019452,2]
[315215850,1708944640947,-2443.93,0.00019452,2]
[315215851,1708944640957,-500.0,0.00019452,2]
[315215852,1708944640966,-20509.35,0.00019452,2]
[315215853,1708944640976,-3618.85,0.00019452,2]
[315215854,1708944640985,-500.0,0.00019452,2]
[315215855,1708944640994,-2029.52,0.00019452,2]
[315215856,1708944641003,-1534.84,0.00019452,2]
[315215857,1708944641012,-2500.81,0.00019452,2]
[315215858,1708944641021,-2377.98,0.00019452,2]
[315215859,1708944641033,-380.88443286,0.00019452,2]
[315215860,1708944641042,-500.0,0.00019452,2]
[315215861,1708944641052,-544.61600458,0.00019452,2]
[315215862,1708944641061,-500.0,0.00019452,2]
[315215863,1708944641070,-500.0,0.00019452,2]
[315215864,1708944641080,-500.0,0.00019452,2]
[315215865,1708944641089,-500.0,0.00019452,2]
[315215866,1708944641098,-500.0,0.00019452,2]
[315215867,1708944641108,-1257.84,0.00019452,2]
[315215868,1708944641117,-500.0,0.00019452,2]
[315215870,1708944641126,-500.0,0.00019452,2]
[315215872,1708944641135,-500.0,0.00019452,2]
[315215874,1708944641144,-2043.46,0.00019452,2]
[315215876,1708944641153,-1897.11,0.00019452,2]
[315215877,1708944641162,-500.0,0.00019452,2]
[315215879,1708944641172,-500.81546176,0.00019452,2]
[315215880,1708944641181,-500.0,0.00019452,2]
[315215881,1708944641190,-500.0,0.00019452,2]
[315215882,1708944641199,-500.0,0.00019452,2]
[315215883,1708944641209,-153.98960683,0.00019452,2]
[315215884,1708944641218,-800.06,0.00019452,2]
[315215885,1708944641227,-182.85476532,0.0001947,2]
[315215886,1708944641236,-182.85476532,0.00019474,2]
[315215887,1708944641246,-7330.41372259,0.00019477,2]
[315215888,1708944641255,-7330.41372259,0.00019484,2]
[315215889,1708944641265,-182.85476532,0.00019491,2]
[315215890,1708944641275,-7330.41372259,0.00019494,2]
[315215891,1708944641285,-278.2948905,0.000195,2]
[315215892,1708944641295,-440.6731672,0.000195,2]
[315215893,1708944641304,-166.666666,0.00019627,2]
[315215894,1708944641313,-500.0,0.00019645,2]
[315215896,1708944641323,-500.0,0.00019645,2]
[315215897,1708944641332,-500.0,0.00019645,2]
[315215898,1708944641341,-319.09963093,0.00019645,2]
[315215899,1708944641351,-5529.96122929,0.000197,2]
[315215900,1708944641361,-5529.96122929,0.000197,2]
[315215901,1708944641370,-5529.96122929,0.000197,2]
[315215902,1708944641379,-153.0,0.000197,2]
[315215903,1708944641388,-153.0,0.000197,2]
[315215904,1708944641397,-1822.60384738,0.00019725,2]
[315215906,1708944641407,-500.0,0.00019725,2]
[315215907,1708944641417,-200.86010344,0.00019725,2]
[315215908,1708944641426,-593.99964599,0.00019725,2]
[315215909,1708944641435,-500.0,0.00019725,2]
[315215910,1708944641444,-500.0,0.00019725,2]
[315215911,1708944641454,-500.0,0.00019725,2]
[315215912,1708944641463,-500.0,0.00019725,2]
[315215913,1708944641472,-500.0,0.00019725,2]
[315215914,1708944641481,-500.0,0.00019725,2]
[315215915,1708944641490,-500.0,0.00019725,2]
[315215916,1708944641499,-500.0,0.00019725,2]
[315215917,1708944641508,-500.0,0.00019725,2]
[315215918,1708944641517,-500.0,0.00019726,2]
[315215919,1708944641528,-500.0,0.00019726,2]
[315215920,1708944641537,-676.95,0.00019726,2]
[315215921,1708944641546,-1240.76,0.00019726,2]
[315215922,1708944641555,-25878.22111287,0.00019726,2]
[315215923,1708944641565,-500.0,0.00019726,2]
[315215924,1708944641574,-500.0,0.00019726,2]
[315215925,1708944641583,-500.0,0.00019726,2]
[315215926,1708944641594,-500.0,0.00019726,2]
[315215927,1708944641603,-500.0,0.00019726,2]
[315215928,1708944641612,-406.99210958,0.00019726,2]
[315215929,1708944641622,-507.80796114,0.00019726,2]
[315215930,1708944641631,-530.43,0.00019726,2]
[315215931,1708944641641,-581.89,0.00019726,2]
[315215932,1708944641651,-477.02525582,0.00019726,2]
[315215933,1708944641660,-3113.07,0.00019726,2]
[315215934,1708944641669,-1303.73,0.00019726,2]
[315215935,1708944641678,-685.61,0.00019726,2]
[315215936,1708944641687,-500.0,0.00019726,2]
[315215937,1708944641696,-1398.47,0.00019726,2]
[315215938,1708944641705,-500.0,0.00019726,2]
[315215939,1708944641713,-500.0,0.00019726,2]
[315215940,1708944641723,-500.0,0.00019726,2]
[315215941,1708944641732,-1136.62,0.00019726,2]
[315215942,1708944641741,-500.0,0.00019726,2]
[315215943,1708944641750,-500.0,0.00019726,2]
[315215944,1708944641759,-500.0,0.00019726,2]
[315215945,1708944641768,-500.0,0.00019726,2]
[315215946,1708944641779,-500.0,0.00019726,2]
[315215947,1708944641789,-500.0,0.00019726,2]
[315215948,1708944641803,-1645.15,0.00019726,2]
[315215949,1708944641814,-613.2,0.00019726,2]
[315215950,1708944641824,-1531.16,0.00019726,2]
[315215951,1708944641834,-500.0,0.00019726,2]
[315215952,1708944641843,-1336.18,0.00019726,2]
[315215953,1708944641853,-160.04742318,0.00019726,2]
[315215954,1708944641862,-501.48262876,0.00019726,2]
[315215955,1708944641870,-2438.08,0.00019726,2]
[315215956,1708944641880,-500.0,0.00019726,2]
[315215957,1708944641889,-500.0,0.00019726,2]
[315215958,1708944641899,-619.68506579,0.00019726,2]
[315215959,1708944641908,-500.0,0.00019726,2]
[315215960,1708944641918,-1138.08,0.00019726,2]
[315215961,1708944641928,-500.0,0.00019726,2]
[315215962,1708944641938,-835.0,0.00019726,2]
[315215963,1708944641947,-500.0,0.00019726,2]
[315215964,1708944641956,-20201.32,0.00019726,2]
[315215965,1708944641966,-500.0,0.00019726,2]
[315215966,1708944641976,-500.0,0.00019726,2]
[315215967,1708944641985,-500.0,0.00019726,2]
[315215968,1708944641994,-508.64002911,0.00019726,2]
[315215969,1708944642004,-500.0,0.00019726,2]
[315215970,1708944642013,-1608.12,0.00019726,2]
[315215971,1708944642119,-500.0,0.00019726,2]
[315215972,1708944642129,-10054.21,0.00019726,2]
[315215973,1708944642139,-508.95,0.00019726,2]
[315215974,1708944642148,-500.0,0.00019726,2]
[315215975,1708944642158,-601.5,0.00019726,2]
[315215976,1708944642167,-7303.99,0.00019726,2]
[315215977,1708944642178,-500.0,0.00019726,2]
[315215978,1708944642187,-3878.83,0.00019726,2]
[315215979,1708944642196,-849.72,0.00019726,2]
[315215980,1708944642206,-500.0,0.00019726,2]
[315215981,1708944642215,-1173.14,0.00019726,2]
[315215982,1708944642224,-500.0,0.00019726,2]
[315215983,1708944642233,-504.12794573,0.00019726,2]
[315215984,1708944642243,-500.0,0.00019726,2]
[315215985,1708944642252,-607.75992688,0.00019726,2]
[315215986,1708944642261,-742.66,0.00019726,2]
[315215987,1708944642271,-442.89928191,0.00019726,2]
[315215988,1708944642367,-57.10071809,0.00019726,2]
[315215989,1708944642377,-500.0,0.00019726,2]
[315215990,1708944642386,-500.0,0.00019726,2]
[315215991,1708944642396,-2443.93,0.00019726,2]
[315215992,1708944642405,-1898.87821154,0.00019726,2]
[315215993,1708944642416,-10192.0,0.00019726,2]
[315215994,1708944642428,-2829.75889917,0.00019726,2]
[315215995,1708944642499,-500.0,0.00019178,2]
[315215996,1708944642508,-352.07720267,0.00019726,2]
[315216012,1708944643193,-501.13519098,0.00019178,2]
[315216013,1708944643203,-4284.27570378,0.00019726,2]
[315216014,1708944643215,-952.35998284,0.00019726,2]
[315216015,1708944643225,-1476.03153605,0.00019726,2]
[315216016,1708944643241,-2142.81846395,0.00019726,2]
[315216018,1708944643251,-2029.52,0.00019726,2]
[315216019,1708944643260,-1534.84,0.00019726,2]
[315216020,1708944643269,-2500.81,0.00019726,2]
[315216021,1708944643280,-2377.98,0.00019726,2]
[315216022,1708944643289,-500.0,0.00019726,2]
[315216023,1708944643299,-500.0,0.00019726,2]
[315216024,1708944643309,-500.0,0.00019726,2]
[315216025,1708944643318,-500.0,0.00019726,2]
[315216026,1708944643327,-450.65957018,0.00019726,2]
[315216027,1708944643338,-1257.84,0.00019726,2]
[315216028,1708944643347,-500.0,0.00019726,2]
[315216029,1708944643356,-500.0,0.00019726,2]
[315216030,1708944643365,-2043.46,0.00019726,2]
[315216031,1708944643374,-1897.11,0.00019726,2]
[315216032,1708944643384,-175.05326981,0.00019726,2]
[315216033,1708944643393,-151.0,0.00019726,2]
[315216034,1708944643402,-500.0,0.00019726,2]
[315216035,1708944643411,-500.0,0.00019726,2]
[315216036,1708944643420,-800.06,0.00019726,2]
[315216037,1708944643430,-200.5826354,0.000198,2]
[315216038,1708944643439,-300.0,0.00019866,2]
[315216039,1708944643448,-2369.36850831,0.000199,2]
[315216040,1708944643457,-500.0,0.0002,2]
[315216041,1708944643466,-500.0,0.0002,2]
[315216042,1708944643475,-676.95,0.0002,2]
[315216043,1708944643484,-1240.76,0.0002,2]
[315216044,1708944643493,-500.0,0.0002,2]
[315216045,1708944643502,-500.0,0.0002,2]
[315216046,1708944643511,-601.30700741,0.0002,2]
[315216047,1708944643520,-500.0,0.0002,2]
[315216048,1708944643532,-500.0,0.0002,2]
[315216049,1708944643541,-530.43,0.0002,2]
[315216050,1708944643550,-567.11207,0.0002,2]
[315216051,1708944643558,-567.11207,0.0002,2]
[315216052,1708944643568,-581.89,0.0002,2]
[315216053,1708944643577,-3113.07,0.0002,2]
[315216054,1708944643587,-1303.73,0.0002,2]
[315216055,1708944643595,-685.61,0.0002,2]
[315216056,1708944643604,-1398.47,0.0002,2]
[315216057,1708944643613,-500.0,0.0002,2]
[315216058,1708944643622,-151.0,0.0002,2]
[315216059,1708944643631,-500.0,0.0002,2]
[315216060,1708944643640,-500.0,0.0002,2]
[315216061,1708944643649,-1136.62,0.0002,2]
[315216062,1708944643658,-500.0,0.0002,2]
[315216063,1708944643667,-500.0,0.0002,2]
[315216064,1708944643676,-500.0,0.0002,2]
[315216065,1708944643685,-500.0,0.0002,2]
[315216066,1708944643694,-500.0,0.0002,2]
[315216067,1708944643703,-500.0,0.0002,2]
[315216068,1708944643712,-1645.15,0.0002,2]
[315216069,1708944643721,-613.2,0.0002,2]
[315216070,1708944643730,-1531.16,0.0002,2]
[315216071,1708944643739,-1336.18,0.0002,2]
[315216072,1708944643748,-2438.08,0.0002,2]
[315216073,1708944643757,-500.0,0.0002,2]
[315216074,1708944643766,-500.0,0.0002,2]
[315216075,1708944643775,-1138.08,0.0002,2]
[315216076,1708944643787,-500.0,0.0002,2]
[315216077,1708944643797,-835.0,0.0002,2]
[315216078,1708944643807,-500.0,0.0002,2]
[315216079,1708944643816,-20201.32,0.0002,2]
[315216080,1708944643825,-500.0,0.0002,2]
[315216081,1708944643834,-243.51868878,0.0002,2]
[315216082,1708944643844,-500.0,0.0002,2]
[315216083,1708944643853,-1608.12,0.0002,2]
[315216084,1708944643862,-500.0,0.0002,2]
[315216085,1708944643871,-10054.21,0.0002,2]
[315216086,1708944643880,-508.95,0.0002,2]
[315216087,1708944643890,-500.0,0.0002,2]
[315216088,1708944643899,-601.5,0.0002,2]
[315216089,1708944643908,-7303.99,0.0002,2]
[315216090,1708944643917,-500.0,0.0002,2]
[315216091,1708944643927,-3878.83,0.0002,2]
[315216092,1708944643935,-849.72,0.0002,2]
[315216093,1708944643944,-252.1457851,0.0002,2]
[315216094,1708944643954,-1173.14,0.0002,2]
[315216095,1708944643963,-500.0,0.0002,2]
[315216096,1708944643973,-500.0,0.0002,2]
[315216097,1708944643981,-742.66,0.0002,2]
[315216098,1708944643991,-438.38699894,0.0002,2]
[315216099,1708944644000,-2443.93,0.0002,2]
[315216100,1708944644008,-20509.35,0.0002,2]
[315216101,1708944644018,-3618.85,0.0002,2]
[315216102,1708944644027,-2029.52,0.0002,2]
[315216103,1708944644038,-1534.84,0.0002,2]
[315216104,1708944644047,-2500.81,0.0002,2]
[315216105,1708944644056,-2377.98,0.0002,2]
[315216106,1708944644065,-500.0,0.0002,2]
[315216107,1708944644073,-500.0,0.0002,2]
[315216108,1708944644082,-500.0,0.0002,2]
[315216109,1708944644091,-1257.84,0.0002,2]
[315216110,1708944644101,-500.0,0.0002,2]
[315216111,1708944644109,-500.0,0.0002,2]
[315216112,1708944644119,-2043.46,0.0002,2]
[315216113,1708944644128,-1897.11,0.0002,2]
[315216114,1708944644137,-500.0,0.0002,2]
[315216115,1708944644146,-500.0,0.0002,2]
[315216116,1708944644155,-800.06,0.0002,2]
[315216117,1708944644164,-300.0,0.00020007,2]
[315216118,1708944644174,-2369.36850828,0.00020011,2]
[315216119,1708944644183,-151.51515152,0.00020074,2]
[315216120,1708944644192,-166.666666,0.00020076,2]
[315216121,1708944644201,-2369.36850828,0.00020122,2]
[315216122,1708944644211,-151.51515152,0.00020135,2]
[315216123,1708944644220,-300.0,0.00020147,2]
[315216124,1708944644229,-1000.0,0.00020169,2]
[315216125,1708944644239,-209.00192076,0.00020169,2]
[315216126,1708944644249,-1000.0,0.00020169,2]
[315216127,1708944644258,-562.85764241,0.00020169,2]
[315216128,1708944644267,-1000.0,0.00020169,2]
[315216129,1708944644276,-213.94934383,0.00020169,2]
[315216130,1708944644288,-1037.38533018,0.00020169,2]
[315216131,1708944644297,-1514.3426959,0.00020169,2]
[315216132,1708944644307,-1000.0,0.00020169,2]
[315216133,1708944644316,-1000.0,0.00020169,2]
[315216134,1708944644326,-326.03313329,0.00020169,2]
[315216135,1708944644335,-206.33927134,0.00020169,2]
[315216136,1708944644345,-462.20445884,0.00020169,2]
[315216137,1708944644354,-1000.0,0.00020169,2]
[315216138,1708944644363,-640.03091446,0.00020173,2]
[315216139,1708944644372,-54356.73173196,0.00020174,4]
[315216243,1708945832341,-653.04920302,0.00018169,2]
[315216245,1708945832351,-27.52459697,0.0001817,2]
[315216303,1708945838233,-474.91710565,0.0001817,2]
[315216305,1708945838241,-216.229696,0.00018178,2]
[315216307,1708945838251,-282.94817922,0.00019176,2]
[315216312,1708945838295,-243.53502212,0.00019176,2]
[315216314,1708945838304,-500.0,0.00019178,2]
[315216316,1708945838313,-500.0,0.00019178,2]
[315216318,1708945838322,-500.0,0.00019178,2]
[315216320,1708945838331,-174.1893576,0.00019178,2]
[315216322,1708945838340,-149.85405749,0.00019178,2]
[315216324,1708945838351,-350.14594251,0.00019178,2]
[315216326,1708945838362,-500.0,0.00019178,2]
[315216328,1708945838371,-349.00690786,0.00019178,2]
[315216330,1708945838380,-259.9324532,0.00019178,2]
[315216333,1708945838389,-500.0,0.00019178,2]
[315216336,1708945838398,-500.0,0.00019178,2]
[315216339,1708945838408,-1041.9,0.00019178,2]
[315216340,1708945838417,-500.0,0.00019178,2]
[315216343,1708945838428,-500.0,0.00019178,2]
[315216345,1708945838438,-505.5617021,0.00019178,2]
[315216347,1708945838449,-0.45776838,0.00019178,2]
[315216349,1708945838458,-500.0,0.00019178,2]
[315216351,1708945838467,-185.27418586,0.00019178,2]
[315216353,1708945838476,-238.35007482,0.00019178,2]
[315216355,1708945838487,-500.0,0.00019178,2]